fUST/lending_fUST_20240215
["ID","MTS","AMOUNT","RATE_DAILY","PERIOD"]
[314095825,1707973839410,-15586.13,0.00035997,14]
[314095826,1707973839419,-24795.73,0.00035997,14]
[314095827,1707973839428,-500.0,0.00035997,14]
[314095828,1707973839437,-500.0,0.00035997,14]
[314095829,1707973839448,-584.17,0.00035997,14]
[314095830,1707973839458,-500.0,0.00035997,14]
[314095831,1707973839467,-500.0,0.00035997,14]
[314095832,1707973839556,-649.77,0.00035997,14]
[314095833,1707973839567,-500.0,0.00035998,14]
[314095834,1707973839576,-2179.4,0.00035998,14]
[314095835,1707973839585,-500.0,0.00035998,14]
[314095836,1707973839594,-1121.29,0.00035998,14]
[314095837,1707973839603,-500.0,0.00035998,14]
[314095838,1707973839613,-1250.52,0.00035998,14]
[314095839,1707973839622,-500.0,0.00035998,14]
[314095840,1707973839631,-778.28,0.00035998,14]
[314095841,1707973839640,-534.30204635,0.00035998,14]
[314095842,1707973839649,-509.89484034,0.00035998,14]
[314095843,1707973839658,-1877.02,0.00035998,14]
[314095844,1707973839667,-1506.38,0.00035998,14]
[314095845,1707973839676,-500.0,0.00035998,14]
[314095846,1707973839685,-500.0,0.00035998,14]
[314095847,1707973839694,-500.0,0.00035998,14]
[314095848,1707973839703,-500.0,0.00035998,14]
[314095849,1707973839712,-500.0,0.00035998,14]
[314095850,1707973839721,-500.0,0.00035998,2]
[314095851,1707973839731,-1260.54,0.00035998,14]
[314095852,1707973839739,-500.0,0.00035998,14]
[314095853,1707973839748,-7796.16,0.00035998,14]
[314095854,1707973839757,-7329.69,0.00035998,14]
[314095855,1707973839767,-2540.61,0.00035998,14]
[314095856,1707973839777,-3137.03,0.00035998,14]
[314095857,1707973839786,-250.0,0.00035998,2]
[314095858,1707973839795,-502.42635629,0.00035999,14]
[314095859,1707973839803,-517.23573722,0.00035999,2]
[314095860,1707973839813,-285.50953037,0.00035999,14]
[314095861,1707973839822,-510.46755575,0.00035999,14]
[314095862,1707973839831,-339.46078471,0.00035999,14]
[314095863,1707973839839,-500.0,0.00035999,14]
[314095864,1707973839849,-517.39206153,0.00035999,14]
[314095865,1707973839859,-500.0,0.00035999,14]
[314095866,1707973839868,-500.0,0.00035999,14]
[314095867,1707973839876,-500.0,0.00035999,14]
[314095868,1707973839885,-195.99445327,0.00035999,14]
[314095869,1707973839894,-500.0,0.00035999,14]
[314095870,1707973839903,-500.0,0.00035999,14]
[314095871,1707973839912,-500.0,0.00035999,14]
[314095872,1707973839921,-500.0,0.00035999,14]
[314095873,1707973839931,-184.23353177,0.00035999,14]
[314095874,1707973839940,-530.35047603,0.00035999,14]
[314095875,1707973839949,-514.93351127,0.00035999,14]
[314095876,1707973839958,-500.0,0.00035999,14]
[314095877,1707973839967,-500.0,0.00035999,14]
[314095878,1707973839976,-585.79,0.00035999,14]
[314095879,1707973839985,-511.58957897,0.00035999,14]
[314095880,1707973839994,-516.94149683,0.00035999,14]
[314095881,1707973840003,-512.63857938,0.00035999,14]
[314095882,1707973840012,-500.0,0.00035999,14]
[314095883,1707973840021,-723.47,0.00035999,14]
[314095885,1707973840030,-500.0,0.00035999,14]
[314095887,1707973840040,-500.0,0.00035999,14]
[314095888,1707973840049,-878.18,0.00035999,14]
[314095890,1707973840058,-500.0,0.00035999,14]
[314095891,1707973840067,-568.99,0.00035999,14]
[314095892,1707973840076,-500.0,0.00035999,14]
[314095893,1707973840085,-501.74485484,0.00035999,14]
[314095894,1707973840094,-500.0,0.00035999,14]
[314095895,1707973840103,-500.0,0.00035999,14]
[314095896,1707973840112,-517.63,0.00035999,14]
[314095897,1707973840121,-506.57653874,0.00035999,14]
[314095898,1707973840130,-557.04962915,0.00035999,14]
[314095899,1707973840140,-500.0,0.00035999,14]
[314095900,1707973840149,-509.17,0.00035999,14]
[314095901,1707973840158,-401.84311323,0.00035999,14]
[314095902,1707973840167,-500.0,0.00035999,14]
[314095903,1707973840176,-266.15669203,0.00035999,14]
[314095904,1707973840184,-500.0,0.00035999,14]
[314095905,1707973840193,-302.19009296,0.00035999,14]
[314095906,1707973840203,-500.0,0.00035999,14]
[314095907,1707973840211,-500.0,0.00035999,14]
[314095908,1707973840220,-500.0,0.00035999,14]
[314095909,1707973840230,-500.0,0.00035999,14]
[314095910,1707973840238,-489.82980321,0.00035999,14]
[314095911,1707973840247,-212.18676146,0.00035999,14]
[314095912,1707973840256,-500.0,0.00035999,14]
[314095913,1707973840265,-500.0,0.00035999,14]
[314095914,1707973840275,-503.32932476,0.00035999,14]
[314095915,1707973840284,-503.4326383,0.00035999,14]
[314095916,1707973840294,-504.18399464,0.00035999,14]
[314095917,1707973840302,-439.02807789,0.00035999,14]
[314095918,1707973840311,-583.6952767,0.00035999,14]
[314095919,1707973840320,-508.6563458,0.00035999,14]
[314095920,1707973840329,-2025.38,0.00035999,14]
[314095921,1707973840338,-500.0,0.00035999,14]
[314095922,1707973840348,-500.0,0.00035999,14]
[314095923,1707973840357,-500.0,0.00035999,14]
[314095924,1707973840366,-500.0,0.00035999,14]
[314095925,1707973840375,-500.0,0.00035999,14]
[314095926,1707973840385,-500.0,0.00035999,14]
[314095927,1707973840394,-511.00343445,0.00035999,14]
[314095928,1707973840403,-500.0,0.00035999,14]
[314095929,1707973840412,-946.12,0.00035999,14]
[314095930,1707973840421,-500.0,0.00035999,14]
[314095931,1707973840430,-500.0,0.00035999,14]
[314095932,1707973840439,-500.0,0.00035999,14]
[314095933,1707973840452,-500.0,0.00035999,14]
[314095934,1707973840460,-1569.69,0.00035999,14]
[314095935,1707973840470,-500.0,0.00035999,14]
[314095936,1707973840479,-500.0,0.00035999,14]
[314095937,1707973840488,-504.24519245,0.00035999,14]
[314095938,1707973840497,-500.0,0.00035999,14]
[314095939,1707973840506,-16978.1,0.00035999,14]
[314095940,1707973840514,-500.0,0.00035999,14]
[314095941,1707973840524,-709.93,0.00035999,14]
[314095942,1707973840534,-500.0,0.00035999,14]
[314095943,1707973840543,-503.4400308,0.00035999,14]
[314095944,1707973840552,-15877.72,0.00035999,14]
[314095945,1707973840562,-315.01598404,0.00035999,14]
[314095946,1707973840571,-500.0,0.00035999,14]
[314095947,1707973840580,-500.0,0.00035999,14]
[314095948,1707973840589,-500.0,0.00035999,14]
[314095949,1707973840598,-500.0,0.00035999,14]
[314095950,1707973840607,-528.03076737,0.00035999,14]
[314095951,1707973840617,-500.0,0.00035999,14]
[314095952,1707973840626,-500.0,0.00035999,14]
[314095953,1707973840635,-500.0,0.00035999,14]
[314095954,1707973840645,-4942.66,0.00035999,14]
[314095956,1707973840654,-500.0,0.00035999,14]
[314095957,1707973840663,-500.0,0.00035999,14]
[314095958,1707973840673,-564.36544628,0.00035999,14]
[314095959,1707973840681,-544.11636985,0.00035999,14]
[314095960,1707973840690,-500.0,0.00035999,14]
[314095961,1707973840700,-1337.76,0.00035999,14]
[314095962,1707973840709,-574.18027158,0.00035999,14]
[314095963,1707973840718,-510.79586648,0.00035999,14]
[314095964,1707973840726,-503.03626653,0.00035999,14]
[314095965,1707973840737,-500.0,0.00035999,14]
[314095966,1707973840746,-1968.68,0.00035999,14]
[314095967,1707973840755,-506.21858276,0.00035999,14]
[314095968,1707973840764,-503.20204968,0.00035999,14]
[314095969,1707973840773,-500.0,0.00035999,14]
[314095970,1707973840782,-500.0,0.00035999,14]
[314095971,1707973840791,-500.0,0.00035999,14]
[314095972,1707973840800,-500.0,0.00035999,7]
[314095973,1707973840809,-500.0,0.00035999,14]
[314095974,1707973840818,-1110.06,0.00035999,2]
[314095975,1707973840827,-1110.06,0.00035999,2]
[314095976,1707973840836,-1110.06,0.00035999,2]
[314095977,1707973840845,-1110.06,0.00035999,2]
[314095978,1707973840854,-1110.06,0.00035999,2]
[314095979,1707973840864,-1110.06,0.00035999,2]
[314095981,1707973840873,-1110.06,0.00035999,2]
[314095982,1707973840882,-1110.06,0.00035999,2]
[314095983,1707973840890,-1110.06,0.00035999,2]
[314095984,1707973840899,-1110.06,0.00035999,2]
[314095985,1707973840908,-1122.83432504,0.00036,3]
[314095986,1707973840917,-152986.52045234,0.00036,14]
[314095987,1707973840926,-166.0,0.00036,2]
[314095988,1707973840936,-186.0,0.00036,2]
[314095989,1707973840944,-15751.18,0.00036134,14]
[314095990,1707973840953,-795.63,0.00036134,14]
[314095991,1707973840962,-500.0,0.00036134,14]
[314095992,1707973840971,-15586.13,0.00036134,14]
[314095993,1707973840980,-24795.73,0.00036134,14]
[314095994,1707973840989,-500.0,0.00036134,14]
[314095995,1707973840998,-500.0,0.00036134,14]
[314095996,1707973841007,-500.0,0.00036134,14]
[314095997,1707973841016,-500.0,0.00036134,14]
[314095998,1707973841025,-649.77,0.00036134,14]
[314095999,1707973841034,-500.0,0.00036135,14]
[314096000,1707973841043,-2179.4,0.00036135,14]
[314096001,1707973841052,-1121.29,0.00036135,14]
[314096002,1707973841061,-576.70942644,0.00036135,14]
[314096003,1707973841070,-1250.52,0.00036135,14]
[314096004,1707973841079,-500.0,0.00036135,14]
[314096005,1707973841088,-778.28,0.00036135,14]
[314096006,1707973841097,-1877.02,0.00036135,14]
[314096007,1707973841106,-1506.38,0.00036135,14]
[314096008,1707973841116,-500.0,0.00036135,14]
[314096009,1707973841125,-500.0,0.00036135,14]
[314096010,1707973841134,-536.17297969,0.00036135,14]
[314096011,1707973841143,-500.0,0.00036135,14]
[314096012,1707973841153,-1260.54,0.00036135,14]
[314096013,1707973841162,-500.0,0.00036135,14]
[314096014,1707973841171,-7796.16,0.00036135,14]
[314096015,1707973841180,-7329.69,0.00036135,14]
[314096016,1707973841190,-2540.61,0.00036135,14]
[314096017,1707973841199,-3137.03,0.00036135,14]
[314096018,1707973841208,-500.0,0.00036136,14]
[314096019,1707973841217,-500.0,0.00036136,14]
[314096020,1707973841226,-500.0,0.00036136,14]
[314096021,1707973841304,-569.62856393,0.00036136,14]
[314096022,1707973841314,-515.87291042,0.00036136,14]
[314096023,1707973841323,-500.0,0.00036136,14]
[314096024,1707973841334,-505.07339131,0.00036136,14]
[314096025,1707973841345,-500.0,0.00036136,14]
[314096026,1707973841354,-547.99777768,0.00036136,14]
[314096027,1707973841365,-500.0,0.00036136,14]
[314096028,1707973841374,-585.79,0.00036136,14]
[314096029,1707973841383,-557.77740763,0.00036136,14]
[314096030,1707973841392,-723.47,0.00036136,14]
[314096031,1707973841401,-507.8299765,0.00036136,14]
[314096032,1707973841411,-500.0,0.00036136,14]
[314096033,1707973841420,-878.18,0.00036136,14]
[314096034,1707973841429,-243.24558305,0.00036136,14]
[314096035,1707973841438,-568.99,0.00036136,14]
[314096036,1707973841449,-500.0,0.00036136,14]
[314096037,1707973841460,-393.15183719,0.00036136,14]
[314096038,1707973841469,-517.63,0.00036136,14]
[314096039,1707973841478,-500.0,0.00036136,14]
[314096040,1707973841487,-509.17,0.00036136,14]
[314096041,1707973841496,-500.0,0.00036136,14]
[314096042,1707973841505,-500.0,0.00036136,14]
[314096043,1707973841515,-510.66884095,0.00036136,14]
[314096044,1707973841524,-529.90121524,0.00036136,14]
[314096045,1707973841534,-507.61309093,0.00036136,14]
[314096046,1707973841543,-500.0,0.00036136,14]
[314096047,1707973841552,-500.0,0.00036136,14]
[314096048,1707973841561,-2025.38,0.00036136,14]
[314096049,1707973841570,-500.0,0.00036136,14]
[314096050,1707973841579,-500.0,0.00036136,14]
[314096051,1707973841588,-500.0,0.00036136,14]
[314096052,1707973841597,-500.0,0.00036136,14]
[314096053,1707973841606,-500.0,0.00036136,14]
[314096054,1707973841616,-946.12,0.00036136,14]
[314096055,1707973841625,-500.0,0.00036136,14]
[314096056,1707973841634,-500.0,0.00036136,14]
[314096057,1707973841643,-1569.69,0.00036136,14]
[314096058,1707973841652,-442.04517344,0.00036136,14]
[314096059,1707973841661,-500.0,0.00036136,14]
[314096060,1707973841670,-16978.1,0.00036136,14]
[314096061,1707973841679,-500.0,0.00036136,14]
[314096062,1707973841688,-709.93,0.00036136,14]
[314096063,1707973841697,-649.01991335,0.00036136,14]
[314096064,1707973841706,-15877.72,0.00036136,14]
[314096065,1707973841715,-500.0,0.00036136,14]
[314096066,1707973841724,-4942.66,0.00036136,14]
[314096067,1707973841732,-1337.76,0.00036136,14]
[314096068,1707973841742,-1968.68,0.00036136,14]
[314096069,1707973841750,-500.0,0.00036136,14]
[314096070,1707973841759,-500.0,0.00036136,14]
[314096071,1707973841769,-500.0,0.00036136,14]
[314096072,1707973841779,-153.0,0.00036164,2]
[314096073,1707973841788,-153.0,0.00036164,2]
[314096074,1707973841797,-324.244693,0.00036219,2]
[314096075,1707973841807,-176.902515,0.00036219,2]
[314096076,1707973841816,-216.5790776,0.00036252,2]
[314096077,1707973841826,-15751.18,0.00036271,14]
[314096078,1707973841835,-795.63,0.00036271,14]
[314096079,1707973841844,-578.79304877,0.00036271,14]
[314096080,1707973841853,-15586.13,0.00036271,14]
[314096081,1707973841863,-24795.73,0.00036271,14]
[314096082,1707973841872,-500.0,0.00036271,14]
[314096083,1707973841881,-500.0,0.00036271,14]
[314096084,1707973841890,-649.77,0.00036271,14]
[314096085,1707973841899,-409.87247855,0.00036271,15]
[314096086,1707973841908,-197.33585836,0.00036271,15]
[314096087,1707973841917,-500.0,0.00036271,15]
[314096088,1707973841926,-500.0,0.00036271,15]
[314096089,1707973841935,-500.0,0.00036271,15]
[314096090,1707973841944,-494.71000904,0.00036271,15]
[314096091,1707973841953,-500.0,0.00036271,15]
[314096092,1707973841962,-596.70127433,0.00036271,15]
[314096093,1707973841971,-276.07965877,0.00036271,15]
[314096094,1707973841980,-500.0,0.00036271,15]
[314096095,1707973841989,-500.0,0.00036271,15]
[314096096,1707973841998,-500.0,0.00036271,15]
[314096097,1707973842007,-500.0,0.00036271,15]
[314096098,1707973842016,-500.0,0.00036271,15]
[314096099,1707973842025,-500.0,0.00036271,15]
[314096100,1707973842034,-539.02217487,0.00036271,15]
[314096101,1707973842043,-500.0,0.00036271,15]
[314096102,1707973842052,-500.0,0.00036271,15]
[314096103,1707973842061,-500.0,0.00036271,15]
[314096104,1707973842070,-500.0,0.00036271,15]
[314096105,1707973842079,-500.0,0.00036271,15]
[314096106,1707973842088,-500.0,0.00036271,15]
[314096107,1707973842098,-500.0,0.00036271,15]
[314096108,1707973842107,-500.0,0.00036271,15]
[314096109,1707973842116,-500.0,0.00036271,15]
[314096110,1707973842125,-500.0,0.00036271,15]
[314096111,1707973842134,-500.0,0.00036272,14]
[314096112,1707973842144,-2179.4,0.00036272,14]
[314096113,1707973842155,-1121.29,0.00036272,14]
[314096114,1707973842164,-1250.52,0.00036272,14]
[314096115,1707973842173,-500.0,0.00036272,14]
[314096116,1707973842182,-778.28,0.00036272,14]
[314096117,1707973842191,-1877.02,0.00036272,14]
[314096118,1707973842200,-1506.38,0.00036272,14]
[314096119,1707973842209,-500.0,0.00036272,14]
[314096120,1707973842218,-1260.54,0.00036272,14]
[314096121,1707973842228,-500.0,0.00036272,14]
[314096122,1707973842237,-7796.16,0.00036272,14]
[314096123,1707973842246,-7329.69,0.00036272,14]
[314096124,1707973842255,-2540.61,0.00036272,14]
[314096125,1707973842264,-3137.03,0.00036272,14]
[314096126,1707973842273,-500.0,0.00036273,14]
[314096127,1707973842282,-500.0,0.00036273,14]
[314096128,1707973842291,-500.0,0.00036273,14]
[314096129,1707973842300,-585.79,0.00036273,14]
[314096130,1707973842309,-723.47,0.00036273,14]
[314096131,1707973842319,-878.18,0.00036273,14]
[314096132,1707973842328,-568.99,0.00036273,14]
[314096133,1707973842337,-500.0,0.00036273,14]
[314096134,1707973842346,-517.63,0.00036273,14]
[314096135,1707973842356,-500.0,0.00036273,14]
[314096136,1707973842365,-509.17,0.00036273,14]
[314096137,1707973842374,-500.0,0.00036273,14]
[314096138,1707973842383,-500.0,0.00036273,14]
[314096139,1707973842393,-500.0,0.00036273,14]
[314096140,1707973842401,-2025.38,0.00036273,14]
[314096141,1707973842411,-500.0,0.00036273,14]
[314096142,1707973842421,-500.0,0.00036273,14]
[314096143,1707973842430,-509.20381597,0.00036273,14]
[314096144,1707973842439,-946.12,0.00036273,14]
[314096145,1707973842452,-500.0,0.00036273,14]
[314096146,1707973842461,-1569.69,0.00036273,14]
[314096147,1707973842470,-16978.1,0.00036273,14]
[314096148,1707973842479,-500.0,0.00036273,14]
[314096149,1707973842489,-709.93,0.00036273,14]
[314096150,1707973842499,-15877.72,0.00036273,14]
[314096151,1707973842508,-508.26343215,0.00036273,14]
[314096152,1707973842518,-4942.66,0.00036273,14]
[314096153,1707973842527,-1337.76,0.00036273,14]
[314096154,1707973842536,-1968.68,0.00036273,14]
[314096155,1707973842545,-500.0,0.00036273,14]
[314096156,1707973842555,-500.0,0.00036273,14]
[314096157,1707973842564,-500.0,0.00036273,14]
[314096158,1707973842573,-280.0,0.00036299,15]
[314096159,1707973842582,-500.0,0.00036318,14]
[314096160,1707973842591,-500.0,0.00036319,14]
[314096161,1707973842600,-862.45,0.0003632,14]
[314096162,1707973842609,-1772.65,0.0003632,14]
[314096163,1707973842618,-500.0,0.0003632,14]
[314096164,1707973842628,-500.0,0.0003632,14]
[314096165,1707973842637,-500.0,0.0003632,14]
[314096166,1707973842646,-2133.03,0.0003632,7]
[314096167,1707973842655,-500.0,0.0003632,14]
[314096168,1707973842664,-500.0,0.0003632,14]
[314096169,1707973842673,-510.05193475,0.00036335,4]
[314096170,1707973842682,-155.0,0.0003637,2]
[314096171,1707973842691,-500.0,0.00036378,14]
[314096172,1707973842700,-345.27422997,0.00036379,14]
[314096173,1707973842710,-500.0,0.00036379,7]
[314096174,1707973842719,-178.61972058,0.00036379,14]
[314096175,1707973842728,-500.0,0.00036379,14]
[314096176,1707973842736,-431.41224199,0.00036379,14]
[314096177,1707973842745,-551.44609297,0.00036379,14]
[314096178,1707973842755,-500.0,0.00036379,14]
[314096179,1707973842764,-500.0,0.00036379,14]
[314096180,1707973842774,-500.0,0.00036379,14]
[314096181,1707973842783,-503.59517549,0.00036379,14]
[314096182,1707973842792,-500.0,0.00036379,14]
[314096183,1707973842801,-502.27692986,0.00036379,14]
[314096184,1707973842810,-502.96749761,0.00036379,14]
[314096185,1707973842819,-503.68135752,0.00036379,14]
[314096186,1707973842829,-504.68343651,0.00036379,14]
[314096187,1707973842839,-542.99508916,0.00036379,14]
[314096188,1707973842848,-500.0,0.00036379,14]
[314096189,1707973842858,-500.0,0.00036379,14]
[314096190,1707973842931,-500.0,0.00036379,14]
[314096191,1707973842940,-555.85105106,0.00036379,14]
[314096192,1707973842949,-500.0,0.00036379,14]
[314096193,1707973842958,-171.89335008,0.00036379,14]
[314096194,1707973842967,-502.47326589,0.00036379,14]
[314096195,1707973842976,-450.74553218,0.00036379,14]
[314096196,1707973842985,-506.64620486,0.00036379,14]
[314096197,1707973842994,-500.0,0.00036379,14]
[314096198,1707973843003,-568.45781319,0.00036379,14]
[314096199,1707973843012,-502.74075274,0.00036379,14]
[314096200,1707973843022,-500.0,0.00036379,14]
[314096201,1707973843031,-641.09533347,0.00036379,14]
[314096202,1707973843040,-500.0,0.00036379,14]
[314096203,1707973843049,-500.0,0.00036379,14]
[314096204,1707973843058,-500.0,0.00036379,14]
[314096205,1707973843068,-332.80978677,0.00036379,14]
[314096206,1707973843077,-500.0,0.00036379,14]
[314096207,1707973843085,-508.16048991,0.00036379,14]
[314096208,1707973843094,-501.30006247,0.00036379,14]
[314096209,1707973843103,-500.0,0.00036379,14]
[314096210,1707973843113,-505.56615774,0.00036379,14]
[314096211,1707973843123,-505.28274655,0.00036379,14]
[314096213,1707973843132,-502.4620901,0.00036379,14]
[314096214,1707973843141,-500.0,0.00036379,14]
[314096215,1707973843150,-501.66356561,0.00036379,14]
[314096216,1707973843158,-504.77975332,0.00036379,14]
[314096217,1707973843167,-500.0,0.00036379,14]
[314096218,1707973843177,-506.56484932,0.00036379,14]
[314096220,1707973843186,-339.79293651,0.00036379,14]
[314096222,1707973843195,-500.0,0.00036379,14]
[314096223,1707973843204,-500.0,0.00036379,14]
[314096225,1707973843213,-500.0,0.00036379,14]
[314096227,1707973843222,-500.0,0.00036379,14]
[314096229,1707973843231,-505.6144463,0.00036379,14]
[314096231,1707973843240,-514.834404,0.00036379,14]
[314096233,1707973843250,-500.0,0.00036379,14]
[314096235,1707973843259,-500.0,0.00036379,14]
[314096237,1707973843270,-500.0,0.0003638,14]
[314096239,1707973843309,-500.0,0.0003638,14]
[314096242,1707973843318,-279.17825571,0.00036381,14]
[314096255,1707973843431,-329.7518327,0.00035986,3]
[314096257,1707973843443,-1490.5481673,0.00035986,3]
[314096259,1707973843455,-220.82174429,0.00036381,14]
[314096261,1707973843465,-580.37169468,0.00036382,14]
[314096263,1707973843475,-500.0,0.00036382,14]
[314096265,1707973843484,-500.0,0.00036382,7]
[314096267,1707973843495,-500.0,0.00036382,14]
[314096269,1707973843504,-500.0,0.00036382,7]
[314096271,1707973843514,-392.64141406,0.00036382,14]
[314096273,1707973843523,-263.2000811,0.00036382,14]
[314096275,1707973843532,-502.73300401,0.00036382,14]
[314096277,1707973843541,-500.0,0.00036382,14]
[314096279,1707973843550,-500.0,0.00036382,14]
[314096281,1707973843559,-490.0,0.00036383,14]
[314096283,1707973843568,-15751.18,0.00036408,14]
[314096285,1707973843577,-795.63,0.00036408,14]
[314096287,1707973843586,-15586.13,0.00036408,14]
[314096289,1707973843595,-1452.24718644,0.00036408,14]
[314096295,1707973843637,-2790.39999992,0.00036408,14]
[314096808,1707975031760,-214.553351,0.0002938,2]
[314096810,1707975031770,-269.56839625,0.000299,2]
[314096812,1707975031779,-2346.5471486,0.0002999,3]
[314096815,1707975031794,-2016.0828514,0.0002999,3]
[314096817,1707975031803,-3635.52,0.0002999,3]
[314096819,1707975031813,-75662.45085047,0.0003,8]
[314097083,1707975037901,-3029.6,0.0002999,3]
[314097084,1707975037911,-17549.43851592,0.0003,8]
[314097086,1707975037920,-248.0,0.0003,2]
[314097088,1707975037930,-24900.0,0.00030173,2]
[314097090,1707975037939,-269.56839625,0.00031346,2]
[314097092,1707975037948,-500.0,0.00032337,7]
[314097094,1707975037957,-209.90373626,0.00032337,7]
[314097096,1707975037966,-241.81295279,0.00032337,7]
[314097098,1707975037976,-500.0,0.00032337,7]
[314097100,1707975037985,-265.57378665,0.00032337,7]
[314097102,1707975037994,-500.0,0.00032337,7]
[314097103,1707975038003,-500.0,0.00032337,7]
[314097104,1707975038013,-183.61581775,0.00032337,7]
[314097105,1707975038022,-500.0,0.00032337,7]
[314097106,1707975038031,-500.0,0.00032337,7]
[314097107,1707975038040,-513.61772715,0.00032337,7]
[314097108,1707975038050,-500.0,0.00032337,7]
[314097109,1707975038060,-500.0,0.00032337,7]
[314097110,1707975038069,-500.0,0.00032337,7]
[314097111,1707975038078,-500.0,0.00032337,7]
[314097112,1707975038087,-500.0,0.00032337,7]
[314097113,1707975038096,-500.0,0.00032337,7]
[314097114,1707975038105,-500.0,0.00032337,7]
[314097115,1707975038114,-500.0,0.00032337,7]
[314097116,1707975038124,-354.25238481,0.00032337,7]
[314097117,1707975038133,-500.0,0.00032337,7]
[314097118,1707975038142,-500.0,0.00032337,7]
[314097119,1707975038151,-500.0,0.00032337,7]
[314097120,1707975038160,-500.0,0.00032337,7]
[314097121,1707975038169,-500.0,0.00032337,7]
[314097122,1707975038179,-500.0,0.00032337,7]
[314097123,1707975038188,-500.0,0.00032337,7]
[314097124,1707975038198,-500.0,0.00032337,7]
[314097125,1707975038207,-500.0,0.00032337,7]
[314097126,1707975038217,-500.0,0.00032337,7]
[314097127,1707975038226,-500.0,0.00032337,7]
[314097128,1707975038236,-500.0,0.00032337,7]
[314097129,1707975038245,-500.0,0.00032337,7]
[314097130,1707975038255,-500.0,0.00032337,7]
[314097131,1707975038265,-500.0,0.00032337,7]
[314097132,1707975038274,-500.0,0.00032337,7]
[314097133,1707975038283,-500.0,0.00032337,7]
[314097134,1707975038292,-500.0,0.00032337,7]
[314097135,1707975038302,-500.0,0.00032337,7]
[314097136,1707975038311,-500.0,0.00032337,7]
[314097137,1707975038321,-500.0,0.00032337,7]
[314097138,1707975038330,-500.0,0.00032337,7]
[314097139,1707975038339,-500.0,0.00032337,7]
[314097140,1707975038349,-500.0,0.00032337,7]
[314097141,1707975038358,-500.0,0.00032337,7]
[314097142,1707975038367,-556.64099354,0.00032337,7]
[314097143,1707975038377,-500.0,0.00032337,7]
[314097144,1707975038386,-500.0,0.00032337,7]
[314097145,1707975038395,-500.0,0.00032337,7]
[314097146,1707975038404,-500.0,0.00032337,7]
[314097147,1707975038414,-6289.74095415,0.00032338,5]
[314097148,1707975038423,-774.71115433,0.00032354,5]
[314097149,1707975038433,-62839.68255338,0.00032354,5]
[314097150,1707975038442,-2647.53648282,0.0003238,5]
[314097151,1707975038451,-269.56839625,0.00032791,2]
[314097152,1707975038461,-200.0,0.00032988,15]
[314097153,1707975038470,-248.0,0.00033,2]
[314097154,1707975038479,-162.0,0.00033,2]
[314097155,1707975038489,-342.04086363,0.00034173,2]
[314097156,1707975038498,-269.56839625,0.00034237,2]
[314097157,1707975038507,-155.0,0.00034666,2]
[314097158,1707975038517,-176.902515,0.0003491,2]
[314097159,1707975038527,-162.122348,0.0003491,2]
[314097160,1707975038537,-518.791509,0.0003491,2]
[314097161,1707975038546,-283.044023,0.0003491,2]
[314097162,1707975038555,-540.407823,0.0003491,2]
[314097163,1707975038565,-294.837525,0.0003491,2]
[314097164,1707975038574,-200.1809906,0.00035342,2]
[314097165,1707975038583,-518.791509,0.00035346,2]
[314097166,1707975038592,-283.044023,0.00035346,2]